bitfinex-derivatives/quotes_BTCF0:USTF0_20241010
["timestamp","ask_amount","ask_price","bid_price","bid_amount"]
[1728591804527,0.083765,59748.0,59747.0,0.273765]
[1728591805821,0.083765,59748.0,59747.0,0.274765]
[1728591806627,0.083765,59748.0,59747.0,0.275765]
[1728591807130,0.3608,59749.0,59748.0,0.083764]
[1728591808219,0.3608,59752.0,59751.0,0.08376]
[1728591808715,0.444553,59756.0,59755.0,0.083754]
[1728591809030,0.444553,59756.0,59755.0,0.273754]
[1728591810222,0.3608,59756.0,59755.0,0.083754]
[1728591810431,0.444553,59756.0,59755.0,0.273754]
[1728591810724,0.444553,59756.0,59755.0,0.274754]
[1728591811517,0.444553,59756.0,59755.0,0.275754]
[1728591814723,0.444553,59756.0,59746.0,0.4346]
[1728591814724,0.083773,59745.0,59744.0,0.083767]
[1728591814923,0.083773,59745.0,59736.0,0.08378]
[1728591814924,0.083782,59737.0,59736.0,0.08378]
[1728591815128,0.083782,59737.0,59728.0,0.3608]
[1728591815129,0.083782,59735.0,59731.0,0.04992136]
[1728591815336,0.083788,59731.0,59730.0,0.19]
[1728591815624,0.083788,59731.0,59727.0,0.00251086]
[1728591815625,0.3608,59733.0,59727.0,0.00251086]
[1728591815828,0.3608,59733.0,59731.0,0.083787]
[1728591816020,0.083787,59732.0,59731.0,0.083787]
[1728591816422,0.083788,59731.0,59730.0,0.19]
[1728591817226,0.083792,59728.0,59727.0,0.00251086]
[1728591817432,0.0838,59722.0,59721.0,0.46924]
[1728591817629,0.083805,59719.0,59717.0,0.083806]
[1728591817932,0.7216,59722.0,59711.0,0.19]
[1728591817933,0.083814,59712.0,59711.0,0.19]
[1728591818131,0.083818,59710.0,59709.0,0.083819]
[1728591818432,0.3608,59712.0,59711.0,0.083816]
[1728591818633,0.3608,59712.0,59711.0,0.273816]
[1728591818634,0.444614,59712.0,59711.0,0.273816]
[1728591819038,0.445614,59712.0,59711.0,0.273816]
[1728591820226,0.451614,59712.0,59711.0,0.273816]
[1728591820832,0.457614,59712.0,59711.0,0.274816]
[1728591821326,0.3738,59712.0,59711.0,0.464816]
[1728591821527,0.3708,59712.0,59711.0,0.463816]
[1728591821734,0.3708,59712.0,59711.0,0.273816]
[1728591822121,0.3708,59712.0,59711.0,0.463816]
[1728591822536,0.3708,59712.0,59711.0,0.273816]
[1728591822926,0.01,59712.0,59711.0,0.273816]
[1728591823825,0.01,59712.0,59711.0,0.48312862]
[1728591824729,0.01,59712.0,59711.0,0.29312862]
[1728591824930,0.01,59712.0,59711.0,0.48312862]
[1728591825130,0.01,59712.0,59711.0,0.29312862]
[1728591826734,0.01,59712.0,59711.0,0.48312862]
[1728591827630,0.01,59712.0,59711.0,1.58552862]
[1728591827832,0.4446,59723.0,59722.0,0.0838]
[1728591828033,0.3608,59723.0,59722.0,0.2738]
[1728591828334,0.3608,59728.0,59726.0,0.083795]
[1728591828539,0.444592,59728.0,59727.0,0.083793]
[1728591829036,0.083793,59727.0,59726.0,0.19]
[1728591830241,0.083793,59727.0,59723.0,0.19]
[1728591830430,0.083793,59727.0,59722.0,0.001]
[1728591830431,0.083799,59723.0,59722.0,0.001]
[1728591830631,0.0764,59726.0,59720.0,0.083803]
[1728591830831,0.444602,59721.0,59720.0,0.083803]
[1728591833140,0.444602,59721.0,59720.0,0.084803]
[1728591833731,0.444602,59721.0,59720.0,0.083803]
[1728591833934,0.453602,59721.0,59720.0,0.083803]
[1728591839745,0.009,59721.0,59720.0,0.083803]
[1728591841240,0.009,59721.0,59720.0,0.13372436]
[1728591841438,0.009,59721.0,59720.0,0.083803]
[1728591841940,0.009,59721.0,59720.0,0.13377765]
[1728591842154,0.009,59721.0,59720.0,0.10353085]
[1728591842742,0.009,59721.0,59720.0,0.15354657]
[1728591842944,0.092802,59721.0,59720.0,0.13381872]
[1728591843149,0.092802,59721.0,59720.0,0.083803]
[1728591843442,0.453602,59721.0,59716.0,0.24006353]
[1728591843745,0.083807,59718.0,59717.0,0.083806]
[1728591844442,0.3608,59718.0,59717.0,0.083806]
[1728591845240,0.3608,59718.0,59717.0,0.15060755]
[1728591846049,0.3628,59718.0,59717.0,0.15060755]
[1728591846251,0.3638,59718.0,59717.0,0.083806]
[1728591846446,0.447606,59718.0,59717.0,0.083806]
[1728591851441,0.447606,59718.0,59715.0,0.08366479]
[1728591851643,0.447606,59718.0,59711.0,0.16747979]
[1728591851644,0.083812,59715.0,59711.0,0.16747979]
[1728591851843,0.083812,59714.0,59712.0,0.06697998]
[1728591852145,0.160512,59714.0,59713.0,0.05022735]
[1728591852450,1.452912,59714.0,59709.0,0.06697998]
[1728591852750,0.083824,59705.0,59704.0,0.53641998]
[1728591852949,0.083828,59702.0,59700.0,0.06697998]
[1728591853247,0.444628,59702.0,59699.0,1.65081198]
[1728591853548,0.444628,59702.0,59699.0,1.583832]
[1728591853744,0.444628,59702.0,59699.0,0.083832]
[1728591854745,0.444628,59702.0,59696.0,1.583836]
[1728591855443,0.444628,59702.0,59696.0,1.5]
[1728591855652,0.444628,59702.0,59701.0,0.00851209]
[1728591855846,0.444628,59702.0,59701.0,0.01451209]
[1728591860049,0.82488011,59702.0,59701.0,0.01451209]
[1728591860245,0.82488011,59702.0,59690.0,0.09177417]
[1728591860246,1.24353211,59702.0,59688.0,0.13747998]
[1728591860454,0.444645,59691.0,59690.0,0.083844]
[1728591860856,0.444645,59691.0,59690.0,1.583844]
[1728591861463,0.444645,59691.0,59690.0,0.083844]
[1728591861649,0.445645,59691.0,59690.0,0.097844]
[1728591863556,0.446645,59691.0,59690.0,0.111844]
[1728591863756,0.002,59691.0,59690.0,0.111844]
[1728591865757,0.085844,59691.0,59690.0,0.111844]
[1728591868757,0.002,59691.0,59690.0,0.297844]
[1728591869457,0.002,59691.0,59690.0,0.293844]
[1728591871453,0.3628,59691.0,59690.0,0.293844]
[1728591871959,0.002,59691.0,59690.0,0.293844]
[1728591875154,0.3628,59691.0,59690.0,0.293844]
[1728591876358,0.3628,59691.0,59690.0,0.36082398]
[1728591876558,0.3628,59691.0,59690.0,0.293844]
[1728591876857,0.3628,59691.0,59690.0,0.36082398]
[1728591877256,0.3628,59691.0,59690.0,0.293844]
[1728591877458,0.3628,59691.0,59690.0,0.36082398]
[1728591878261,0.3628,59691.0,59690.0,0.293844]
[1728591881156,0.3628,59691.0,59690.0,0.38264211]
[1728591884773,0.3628,59691.0,59690.0,0.38271013]
[1728591886271,0.3628,59691.0,59690.0,0.4823153]
[1728591887177,0.3628,59691.0,59690.0,0.38271013]
[1728591888565,0.446644,59691.0,59690.0,0.19271013]
[1728591890966,0.446644,59691.0,59690.0,0.38271013]
[1728591891168,0.3628,59691.0,59690.0,0.38271013]
[1728591891568,0.3628,59691.0,59690.0,0.4823153]
[1728591891774,0.3628,59691.0,59690.0,0.40892431]
[1728591892579,0.002,59691.0,59690.0,0.40892431]
[1728591892772,0.002,59691.0,59690.0,0.51475486]
[1728591893579,0.002,59691.0,59690.0,0.40892431]
[1728591893787,0.002,59691.0,59690.0,0.40883921]
[1728591895281,0.3628,59691.0,59690.0,0.5094365]
[1728591895789,0.3628,59691.0,59690.0,0.40883921]
[1728591896192,0.002,59691.0,59690.0,0.40883921]
[1728591896889,0.085844,59691.0,59690.0,0.21883921]
[1728591897089,0.299244,59691.0,59690.0,0.19261675]
[1728591897389,0.299244,59691.0,59690.0,0.02]
[1728591898587,0.298244,59691.0,59690.0,0.01]
[1728591898989,0.297244,59691.0,59686.0,0.0670477]
[1728591899289,0.083851,59686.0,59685.0,0.1508997]
[1728591899994,0.083851,59686.0,59685.0,0.0670477]
[1728591901290,0.083852,59685.0,59684.0,0.1509007]
[1728591901999,0.083852,59685.0,59681.0,0.083857]
[1728591902297,0.444656,59682.0,59681.0,0.083857]
[1728591902795,0.001,59685.0,59684.0,0.083854]
[1728591902991,0.001,59685.0,59684.0,0.17253696]
[1728591903196,0.001,59685.0,59684.0,0.1987534]
[1728591903392,0.002,59685.0,59684.0,0.30428063]
[1728591903594,0.002,59685.0,59684.0,1.80426978]
[1728591904497,0.002,59685.0,59684.0,1.6987534]
[1728591904696,0.001,59685.0,59684.0,0.083854]
[1728591904997,0.002,59685.0,59684.0,0.095854]
[1728591905700,0.085852,59685.0,59684.0,0.012]
[1728591905906,0.085852,59685.0,59684.0,0.07897131]
[1728591906103,0.085852,59685.0,59684.0,0.012]
[1728591906495,0.085852,59685.0,59684.0,0.095854]
[1728591911604,0.085852,59685.0,59684.0,0.012]
[1728591912209,0.00216001,59688.0,59684.0,1.06544]
[1728591912509,0.444624,59706.0,59705.0,0.083824]
[1728591912711,0.444624,59706.0,59701.0,0.19]
[1728591913005,0.444625,59706.0,59705.0,0.083824]
[1728591913804,0.083828,59703.0,59702.0,0.083826]
[1728591915203,0.096828,59703.0,59702.0,0.084826]
[1728591915709,0.089828,59703.0,59702.0,0.084826]
[1728591916098,0.450628,59703.0,59702.0,0.084826]
[1728591916303,0.089828,59703.0,59702.0,0.084826]
[1728591916608,0.462628,59703.0,59702.0,0.085826]
[1728591917303,0.449628,59703.0,59702.0,0.083826]
[1728591917510,0.449628,59703.0,59702.0,0.084826]
[1728591917511,0.3718,59703.0,59702.0,0.084826]
[1728591918503,0.3658,59703.0,59702.0,0.083826]
[1728591918706,0.3708,59703.0,59702.0,0.083826]
[1728591918908,0.454627,59703.0,59702.0,0.083826]
[1728591919304,0.3708,59703.0,59702.0,0.083826]
[1728591920408,0.01,59703.0,59702.0,0.083826]
[1728591920603,0.3708,59703.0,59702.0,0.083826]
[1728591921401,0.3658,59703.0,59702.0,0.083826]
[1728591921604,0.3708,59703.0,59702.0,0.083826]
[1728591921807,0.39051095,59703.0,59702.0,0.083826]
[1728591922507,0.00251307,59711.0,59710.0,0.083817]
[1728591924211,0.01451307,59711.0,59710.0,0.084817]
[1728591924414,0.02451307,59711.0,59710.0,0.085817]
[1728591925210,0.022,59711.0,59710.0,0.085817]
[1728591925605,0.105816,59711.0,59710.0,0.085817]
[1728591925805,0.105816,59711.0,59710.0,0.002]
[1728591927214,0.105816,59711.0,59700.0,0.08383]
[1728591927215,0.083817,59710.0,59700.0,0.08383]
[1728591927412,0.083833,59699.0,59694.0,0.06681347]
[1728591927708,0.19,59692.0,59684.0,0.083853]
[1728591927918,0.444645,59690.0,59689.0,0.083845]
[1728591928111,0.444645,59690.0,59680.0,0.01978894]
[1728591928112,0.083851,59686.0,59685.0,0.08385]
[1728591928312,0.083858,59683.0,59682.0,0.083855]
[1728591928517,0.444658,59683.0,59682.0,0.083855]
[1728591929310,0.3608,59683.0,59682.0,0.083855]
[1728591930217,0.445655,59683.0,59682.0,0.090855]
[1728591931120,0.001,59683.0,59682.0,0.090855]
[1728591931513,0.002,59683.0,59682.0,0.097855]
[1728591932711,0.002,59683.0,59682.0,0.014]
[1728591932712,0.085855,59683.0,59682.0,0.014]
[1728591932913,0.275855,59683.0,59682.0,0.014]
[1728591933409,0.085855,59683.0,59682.0,0.014]
[1728591934523,0.085855,59683.0,59682.0,0.097856]
[1728591935524,0.085855,59683.0,59682.0,0.014]
[1728591936324,0.1051722,59683.0,59682.0,0.014]
[1728591940313,0.4659722,59683.0,59682.0,0.014]
[1728591941815,0.085855,59683.0,59682.0,0.287856]
[1728591942020,0.002,59683.0,59682.0,0.287856]
[1728591943431,0.002,59683.0,59682.0,1.787856]
[1728591944333,0.085855,59683.0,59682.0,0.097856]
[1728591947133,0.446655,59683.0,59682.0,0.097856]
[1728591947424,0.46560742,59683.0,59682.0,0.097856]
[1728591948034,0.446655,59683.0,59682.0,0.287856]
[1728591950837,0.446655,59683.0,59682.0,0.097856]
[1728591954129,0.446655,59683.0,59682.0,0.014]
[1728591957925,0.446655,59683.0,59682.0,0.097856]
[1728591961035,0.002,59683.0,59682.0,0.097856]
[1728591961336,0.002,59683.0,59682.0,0.18686181]
[1728591961933,0.002,59683.0,59682.0,0.46067309]
[1728591962838,0.002,59683.0,59682.0,0.46071921]
[1728591963143,0.3628,59683.0,59682.0,0.287856]
[1728591963741,0.002,59683.0,59682.0,0.37689639]
[1728591965344,0.085855,59683.0,59682.0,0.27071155]
[1728591965641,0.085855,59683.0,59682.0,0.18167116]
[1728591965845,0.085855,59683.0,59682.0,0.097856]
[1728591968145,0.002,59683.0,59682.0,0.287856]
[1728591968347,0.002,59683.0,59682.0,0.37702869]
[1728591969643,0.002,59683.0,59682.0,1.87702869]
[1728591971351,0.002,59683.0,59682.0,1.90324724]
[1728591971549,0.0352,59688.0,59687.0,0.083849]
[1728591971845,0.0352,59688.0,59687.0,0.36280159]
[1728591972043,0.0352,59688.0,59687.0,0.46336982]
[1728591972247,0.0352,59688.0,59687.0,0.38901752]
[1728591972449,0.0352,59688.0,59687.0,0.46332668]
[1728591972653,0.0352,59688.0,59687.0,0.38901758]
[1728591972846,0.0362,59688.0,59687.0,0.40101758]
[1728591973147,0.0372,59688.0,59687.0,0.61531758]
[1728591973955,0.0372,59688.0,59687.0,0.42531758]
[1728591974149,0.0372,59688.0,59687.0,0.61531758]
[1728591974753,0.0362,59688.0,59687.0,0.60931758]
[1728591975061,0.0372,59688.0,59687.0,0.63477081]
[1728591975960,0.0362,59688.0,59687.0,0.62877081]
[1728591976168,0.0372,59688.0,59687.0,0.63477081]
[1728591976356,0.0372,59688.0,59687.0,0.63444038]
[1728591977164,0.002,59688.0,59687.0,0.63444038]
[1728591977355,0.002,59688.0,59687.0,0.99524038]
[1728591977555,0.001,59688.0,59687.0,0.98924038]
[1728591977758,0.002,59688.0,59687.0,0.99524038]
[1728591977958,0.3608,59696.0,59687.0,0.99524038]
[1728591978166,0.3608,59696.0,59695.0,0.34074208]
[1728591979060,0.3608,59696.0,59695.0,0.273838]
[1728591979468,0.3608,59696.0,59695.0,0.274838]
[1728591980368,0.3608,59696.0,59695.0,0.273838]
[1728591981070,0.3618,59696.0,59695.0,0.273838]
[1728591981259,0.001,59696.0,59695.0,0.273838]
[1728591981462,0.001,59696.0,59695.0,0.34074208]
[1728591982460,0.001,59696.0,59695.0,0.25690408]
[1728591982668,0.001,59696.0,59695.0,0.34074208]
[1728591984072,0.083835,59697.0,59696.0,0.083837]
[1728591985478,0.085835,59697.0,59696.0,0.083837]
[1728591985968,0.086835,59697.0,59696.0,0.083837]
[1728591988467,0.085835,59697.0,59696.0,0.083837]
[1728591988775,0.086835,59697.0,59696.0,0.083837]
[1728591990771,0.084835,59697.0,59696.0,0.083837]
[1728591990974,0.086835,59697.0,59696.0,0.083837]
[1728591991878,0.084835,59697.0,59696.0,0.083837]
[1728591992070,0.086835,59697.0,59696.0,0.083837]
[1728591993376,0.084835,59697.0,59696.0,0.083837]
[1728591993581,0.086835,59697.0,59696.0,0.083837]
[1728591994672,0.086835,59697.0,59696.0,0.15074108]
[1728591995477,0.086835,59697.0,59696.0,0.06689328]
[1728591995778,0.083837,59696.0,59695.0,0.06689328]
[1728591995969,0.083837,59696.0,59694.0,0.083839]
[1728591995970,0.083838,59695.0,59694.0,0.083839]
[1728591996373,0.083838,59695.0,59694.0,0.15073228]
[1728591997072,0.083838,59695.0,59694.0,0.15173228]
[1728591997872,0.083838,59695.0,59694.0,0.34173228]
[1728591998477,0.083838,59695.0,59694.0,0.274839]
[1728592000370,0.085838,59695.0,59694.0,0.274839]
[1728592000577,0.085838,59695.0,59694.0,0.084839]
[1728592001072,0.086838,59695.0,59694.0,0.083839]
[1728592007880,0.086838,59695.0,59694.0,0.273839]
[1728592008276,0.003,59695.0,59694.0,0.273839]
[1728592008582,0.003,59695.0,59694.0,0.36247535]
[1728592009179,0.003,59695.0,59694.0,0.46784478]
[1728592009374,0.00251379,59704.0,59703.0,0.083827]
[1728592009572,0.00251379,59704.0,59703.0,0.36197428]
[1728592009773,0.00251379,59704.0,59703.0,0.41222418]
[1728592009979,0.00251379,59704.0,59703.0,1.91222418]
[1728592010373,0.00251379,59704.0,59703.0,0.36197428]
[1728592011084,0.00251379,59704.0,59703.0,0.38818289]
[1728592011280,0.00251379,59704.0,59703.0,0.45514724]
[1728592011477,0.00651379,59704.0,59703.0,0.38818289]
[1728592011678,0.00651379,59704.0,59703.0,0.45514724]
[1728592011877,0.00651379,59704.0,59703.0,0.38818289]
[1728592012178,0.00651379,59704.0,59703.0,0.38818117]
[1728592012776,0.00951379,59704.0,59703.0,0.38818117]
[1728592013185,0.007,59704.0,59703.0,0.38818117]
[1728592013984,0.153812,59714.0,59713.0,0.083813]
[1728592014182,0.083812,59714.0,59713.0,0.273813]
[1728592015088,0.096812,59714.0,59713.0,0.274813]
[1728592015685,0.096812,59714.0,59713.0,0.275813]
[1728592015686,0.027,59714.0,59713.0,0.275813]
[1728592016994,0.110812,59714.0,59713.0,0.275813]
[1728592017588,0.110812,59714.0,59713.0,0.085813]
[1728592017797,0.110812,59714.0,59713.0,0.13594781]
[1728592018287,0.110812,59714.0,59713.0,0.085813]
[1728592018493,0.110812,59714.0,59713.0,0.13589696]
[1728592019492,0.110812,59714.0,59713.0,0.085813]
[1728592023883,1.574012,59714.0,59709.0,0.05008396]
[1728592024083,1.574012,59714.0,59706.0,0.06672914]
[1728592024084,0.083833,59699.0,59696.0,0.08344476]
[1728592024284,0.50244,59713.0,59696.0,0.083837]
[1728592024285,0.444636,59697.0,59696.0,0.083837]
[1728592024590,0.574636,59697.0,59696.0,0.083837]
[1728592025293,0.3608,59703.0,59696.0,0.132]
[1728592025589,0.3608,59703.0,59702.0,0.213828]
[1728592025790,0.3608,59703.0,59702.0,0.343828]
[1728592026501,0.3608,59703.0,59702.0,0.273828]
[1728592026684,0.24108135,59712.0,59702.0,0.634628]
[1728592026999,0.3608,59711.0,59710.0,0.083817]
[1728592027295,0.444616,59711.0,59710.0,0.083817]
[1728592028392,0.455616,59711.0,59710.0,0.001]
[1728592028597,0.465616,59711.0,59710.0,0.002]
[1728592029787,0.454616,59711.0,59710.0,0.001]
[1728592029987,0.454616,59711.0,59710.0,0.085817]
[1728592029988,0.457616,59711.0,59710.0,0.085817]
[1728592030192,0.457616,59711.0,59710.0,0.002]
[1728592030396,0.450616,59711.0,59710.0,0.001]
[1728592030690,0.460616,59711.0,59710.0,0.001]
[1728592030896,0.462616,59711.0,59710.0,0.002]
[1728592031094,0.459616,59711.0,59710.0,0.002]
[1728592031793,0.456616,59711.0,59710.0,0.001]
[1728592032095,0.095816,59711.0,59710.0,0.001]
[1728592032295,0.456616,59711.0,59710.0,0.001]
[1728592033099,0.455616,59711.0,59710.0,0.001]
[1728592035801,0.3718,59711.0,59710.0,0.084817]
[1728592036688,0.011,59711.0,59710.0,0.084817]
[1728592036893,0.011,59711.0,59710.0,0.155917]
[1728592037091,0.25653741,59719.0,59718.0,0.083806]
[1728592037507,0.34034141,59719.0,59718.0,0.083806]
[1728592038499,0.35334141,59719.0,59718.0,0.084806]
[1728592039198,0.27753741,59719.0,59718.0,0.085806]
[1728592040696,0.3047082,59719.0,59718.0,0.085806]
[1728592042402,0.021,59719.0,59718.0,0.085806]
[1728592042701,0.153894,59727.0,59726.0,0.083795]
[1728592042903,0.18106063,59727.0,59726.0,0.273795]
[1728592043291,0.11096063,59727.0,59726.0,0.273795]
[1728592043706,0.02716663,59727.0,59726.0,0.273795]
[1728592043896,0.03816663,59727.0,59726.0,0.274795]
[1728592044902,0.011,59727.0,59726.0,0.274795]
[1728592045801,0.012,59727.0,59726.0,0.275795]
[1728592047699,0.012,59727.0,59726.0,0.465795]
[1728592048793,0.011,59727.0,59726.0,0.464795]
[1728592048999,0.083784,59734.0,59733.0,0.083785]
[1728592049201,0.083784,59734.0,59733.0,0.273785]
[1728592050496,0.3608,59736.0,59733.0,0.19]
[1728592050795,0.444581,59736.0,59735.0,0.083782]
[1728592051905,0.444581,59736.0,59713.0,0.00084]
[1728592051906,0.083785,59733.0,59713.0,0.00084]
[1728592052101,1.3408,59736.0,59711.0,0.01894839]
[1728592052102,0.5508,59714.0,59711.0,0.01894839]
[1728592052297,0.083831,59702.0,59701.0,0.083829]
[1728592052598,0.083834,59699.0,59698.0,0.083833]
[1728592054309,0.083834,59698.0,59697.0,0.3608]
[1728592054914,0.08383,59701.0,59700.0,0.083831]
[1728592055208,0.08383,59701.0,59700.0,0.273831]
[1728592056109,0.08383,59701.0,59700.0,0.280831]
[1728592057207,0.08383,59701.0,59700.0,0.286831]
[1728592057509,0.08383,59701.0,59700.0,0.096831]
[1728592082313,0.08383,59701.0,59700.0,0.18923299]
[1728592088618,1.10252,59701.0,59692.0,0.10018574]
[1728592088925,1.10252,59701.0,59685.0,0.00251276]
[1728592088926,0.083851,59686.0,59685.0,0.00251276]
[1728592089127,0.634651,59686.0,59685.0,0.00251276]
[1728592090227,0.634651,59686.0,59685.0,0.06948377]
[1728592090431,0.634651,59686.0,59685.0,0.07848377]
[1728592090931,0.444651,59686.0,59685.0,0.07848377]
[1728592091225,0.083851,59686.0,59685.0,0.35233577]
[1728592091427,0.083851,59686.0,59685.0,0.3522995]
[1728592091615,0.083851,59686.0,59685.0,0.09536476]
[1728592091815,0.083851,59686.0,59685.0,0.16230136]
[1728592092423,0.083851,59686.0,59685.0,0.09536476]
[1728592092629,0.084851,59686.0,59685.0,0.10336476]
[1728592094232,0.445651,59686.0,59685.0,0.10336476]
[1728592096725,0.3618,59686.0,59685.0,0.29336476]
[1728592096929,0.001,59686.0,59685.0,0.29336476]
[1728592098225,0.001,59686.0,59685.0,0.31228455]
[1728592100133,0.084851,59686.0,59685.0,0.29336476]
[1728592100345,0.084851,59686.0,59685.0,0.10336476]
[1728592101736,0.084851,59686.0,59685.0,0.17021425]
[1728592102038,0.084851,59686.0,59685.0,0.10336476]
[1728592103334,0.084851,59686.0,59685.0,0.17021425]
[1728592103739,0.084851,59686.0,59685.0,0.10336476]
[1728592104341,0.084851,59686.0,59685.0,0.17021425]
[1728592105338,0.084851,59686.0,59685.0,0.10336476]
[1728592105640,0.445651,59686.0,59685.0,0.17021926]
[1728592105832,0.084851,59686.0,59685.0,0.17021926]
[1728592106141,0.445651,59686.0,59685.0,0.17021926]
[1728592107543,0.445651,59686.0,59685.0,0.10336476]
[1728592108250,0.445651,59686.0,59685.0,0.17021926]
[1728592108544,0.445651,59686.0,59685.0,0.10336476]
[1728592109246,0.635651,59686.0,59685.0,0.0838545]
[1728592109544,0.635651,59686.0,59685.0,0.017]
[1728592111237,0.274851,59686.0,59685.0,0.017]
[1728592111842,0.084851,59686.0,59685.0,0.100852]
[1728592112651,0.084851,59686.0,59685.0,0.017]
[1728592115051,0.445651,59686.0,59685.0,0.017]
[1728592116041,0.445651,59686.0,59685.0,0.100852]
[1728592116649,0.445651,59686.0,59685.0,0.017]
[1728592117346,0.445651,59686.0,59685.0,0.0838545]
[1728592118149,0.445651,59686.0,59685.0,0.017]
[1728592118450,0.445651,59686.0,59685.0,0.290852]
[1728592118653,0.001,59686.0,59685.0,0.290852]
[1728592118844,0.001,59686.0,59685.0,0.38199078]
[1728592119358,0.001,59686.0,59685.0,0.40169728]
[1728592119854,0.001,59686.0,59685.0,0.40160118]
[1728592121649,0.001,59686.0,59685.0,0.42781759]
[1728592122746,0.001,59686.0,59685.0,0.52848964]
[1728592123349,0.001,59686.0,59685.0,0.42781759]
[1728592124846,0.001,59686.0,59685.0,0.40160118]
[1728592125057,0.001,59686.0,59685.0,0.42781699]
[1728592127853,0.084851,59686.0,59685.0,0.42781699]
[1728592128348,0.084851,59686.0,59685.0,0.78861697]
[1728592128753,0.084851,59686.0,59685.0,0.76240118]
[1728592128754,0.001,59686.0,59685.0,0.76240118]
[1728592128958,0.001,59686.0,59685.0,0.6713585]
[1728592129163,0.001,59686.0,59685.0,0.7622676]
[1728592129360,0.001,59686.0,59685.0,0.78848415]
[1728592129955,0.001,59686.0,59685.0,0.42768415]
[1728592130254,0.001,59686.0,59685.0,0.3105585]
[1728592130771,0.001,59686.0,59685.0,0.33677506]
[1728592131659,0.001,59686.0,59685.0,0.3105585]
[1728592131864,0.001,59686.0,59685.0,0.33677505]
[1728592132359,0.001,59686.0,59685.0,0.14677505]
[1728592132664,0.001,59686.0,59685.0,0.27677505]
[1728592135058,0.001,59686.0,59685.0,0.2505585]
[1728592135270,0.001,59686.0,59685.0,0.27677384]
[1728592136959,0.001,59686.0,59685.0,0.63757384]
[1728592138163,0.001,59686.0,59685.0,0.72810471]
[1728592138364,0.001,59686.0,59685.0,0.72810141]
[1728592141269,0.001,59686.0,59685.0,0.82877346]
[1728592141472,0.001,59686.0,59685.0,0.82878526]
[1728592141872,0.001,59686.0,59685.0,0.72811321]
[1728592142069,0.00251384,59698.0,59685.0,1.87690121]
[1728592142284,0.08634784,59698.0,59697.0,0.213835]
[1728592142470,0.00251384,59698.0,59697.0,0.213835]
[1728592143472,0.00951384,59698.0,59697.0,0.213835]
[1728592143972,0.09034784,59698.0,59697.0,0.213835]
[1728592144162,0.09334784,59698.0,59697.0,0.213835]
[1728592144971,0.09234784,59698.0,59697.0,0.213835]
[1728592145872,0.09034784,59698.0,59697.0,0.213835]
[1728592146374,0.09134784,59698.0,59697.0,0.213835]
[1728592146977,0.09134784,59698.0,59697.0,0.083835]
[1728592147172,0.09034784,59698.0,59697.0,0.213835]
[1728592147472,0.08734784,59698.0,59697.0,0.213835]
[1728592147669,0.09034784,59698.0,59697.0,0.213835]
[1728592148070,0.09134784,59698.0,59697.0,0.213835]
[1728592148876,0.00751384,59698.0,59697.0,0.213835]
[1728592150975,0.00751384,59698.0,59697.0,0.29755155]
[1728592151172,0.00751384,59698.0,59697.0,0.38773939]
[1728592152277,0.005,59698.0,59697.0,0.38773939]
[1728592152975,0.002,59698.0,59697.0,0.38773939]
[1728592153179,0.003,59698.0,59697.0,0.213835]
[1728592153975,0.3608,59701.0,59700.0,0.083831]
[1728592154178,0.3608,59701.0,59700.0,0.213831]
[1728592156281,0.3638,59701.0,59700.0,0.083831]
[1728592156471,0.3678,59701.0,59700.0,0.213831]
[1728592157569,0.007,59701.0,59700.0,0.213831]
[1728592157767,0.007,59701.0,59700.0,0.343831]
[1728592159289,0.004,59701.0,59700.0,1.843831]
[1728592159581,0.001,59701.0,59700.0,1.843831]
[1728592160173,0.001,59701.0,59700.0,1.82341801]
[1728592161277,0.001,59701.0,59700.0,1.82354007]
[1728592162483,0.001,59701.0,59700.0,1.69354007]
[1728592162687,0.001,59701.0,59700.0,1.82354007]
[1728592163982,0.083815,59712.0,59711.0,0.083816]
[1728592165485,0.091815,59712.0,59711.0,0.084816]
[1728592166587,0.091815,59712.0,59711.0,0.085816]
[1728592166588,0.096815,59712.0,59711.0,0.085816]
[1728592169292,0.013,59712.0,59711.0,0.085816]
[1728592171689,0.3738,59712.0,59711.0,0.085816]
[1728592173097,0.40097466,59712.0,59711.0,0.085816]
[1728592174881,0.3738,59712.0,59711.0,0.085816]
[1728592175283,0.3738,59712.0,59711.0,0.15272194]
[1728592177190,0.3738,59712.0,59711.0,0.085816]
[1728592177584,0.3738,59712.0,59711.0,0.15276485]
[1728592178497,0.3738,59712.0,59711.0,0.085816]
[1728592181587,0.013,59712.0,59711.0,0.085816]
[1728592181888,0.3738,59712.0,59711.0,0.085816]
[1728592183291,0.40097459,59712.0,59711.0,0.085816]
[1728592185193,0.04017459,59712.0,59711.0,0.085816]
[1728592185499,0.40097459,59712.0,59711.0,0.085816]
[1728592185690,0.04017459,59712.0,59711.0,0.085816]
[1728592185891,0.40097459,59712.0,59711.0,0.085816]
[1728592187391,0.46570679,59712.0,59711.0,0.085816]
[1728592187792,0.3738,59712.0,59711.0,0.085816]
[1728592187991,0.46570687,59712.0,59711.0,0.085816]
[1728592189702,0.10490687,59712.0,59711.0,0.085816]
[1728592189902,0.46570687,59712.0,59711.0,0.085816]
[1728592190301,0.3738,59712.0,59711.0,0.085816]
[1728592193408,0.3738,59712.0,59711.0,0.16944843]
[1728592193599,0.3738,59712.0,59711.0,0.085816]
[1728592194994,0.3738,59712.0,59711.0,0.16944843]
[1728592195502,0.3738,59712.0,59711.0,0.085816]
[1728592195806,0.3738,59712.0,59711.0,0.16944843]
[1728592196399,0.3738,59712.0,59711.0,0.085816]